Cogmind - Beta 16.1 @@@ ROGUE MODE // 2026.02.17 @ 16:52:08 Player: Artackni Result: Destroyed by WX-F0Y(R) with Subdweller Beam Cannon Performance ------------- Evolutions (0) 0 Regions Visited (2) 400 Robots Destroyed (18) 90 Value Destroyed (365) 365 Prototype IDs (13) 260 Alien Tech Used (0) 0 Bonus (0) 0 TOTAL SCORE: 1115 Bonus ------- None Cogmind --------- Core Integrity 0/250 Matter 290/300 Energy 70/100 System Corruption 0% Temperature Cool (9) Movement Rolling (110) Ox2 Location -10/Subcaves Parts ------- > --- POWER (1) -------- (None) > --- PROPULSION (2) --- Wheel > --- UTILITY (2) ------ Large Storage Unit > --- WEAPON (2) ------- Medium Laser Medium Laser > --- INVENTORY (15) --- Ion Engine Light Treads Light Treads Makeshift Flight Unit Improved Heat Sink Structural Scanner Light Armor Plating EM Pulse Gun Medium Laser Light Assault Rifle Light Assault Rifle Light Assault Rifle Piercing Trap Peak State ------------ > --- POWER ------------ Ion Engine > --- PROPULSION ------- Wheel Wheel > --- UTILITY ---------- Improved Heat Sink Large Storage Unit > --- WEAPON ----------- Small Laser Small Laser > --- INVENTORY -------- Ion Engine Light Treads Light Treads Structural Scanner Seismic Detector Light Armor Plating EM Pulse Gun Medium Laser Medium Laser Medium Laser Medium Laser Light Assault Rifle Light Assault Rifle Light Assault Rifle [Rating: 10] Favorites ----------- Power Ion Engine Engine Ion Engine Propulsion Wheel Treads Light Treads Wheel Wheel Utility Large Storage Unit Device Seismic Detector Storage Large Storage Unit Protection Light Armor Plating Weapon Medium Laser Energy Gun Medium Laser Ballistic Gun Light Assault Rifle Build | -11 -10 -10 ------- Run | Yrd Mat Sub Slots Evolved . | . . . Power . | . . . Propulsion . | . . . Utility . | . . . Weapon . | . . . Parts Attached 22 | 8 11 3 Power 3 | 1 2 . Engine 3 | 1 2 . Core . | . . . Reactor . | . . . Propulsion 5 | 3 2 . Treads 1 | 1 . . Leg . | . . . Wheel 4 | 2 2 . Hover . | . . . Flight . | . . . Utility 7 | 2 3 2 Device 4 | 1 1 2 Storage 2 | 1 1 . Processor . | . . . Hackware . | . . . Protection 1 | . 1 . Artifact . | . . . Weapon 7 | 2 4 1 Energy Gun 5 | 1 3 1 Energy Cannon . | . . . Ballistic Gun 2 | 1 1 . Ballistic Cannon . | . . . Launcher . | . . . Special Weapon . | . . . Impact Weapon . | . . . Slashing Weapon . | . . . Piercing Weapon . | . . . Special Melee Weapon . | . . . Unidentified Prototypes . | . . . Parts Lost 11 | . 7 4 Power 2 | . 1 1 Propulsion 3 | . 2 1 Utility 2 | . 1 1 Weapon 4 | . 3 1 Highest Loss Streak 5 | . 5 3 To Critical Strikes . | . . . Average Backups 9 | 3 9 12 Power . | . 1 1 Propulsion 3 | 1 3 2 Utility 2 | . 2 3 Weapon 3 | . 3 5 Tool/Special . | . . . Unused Backups 7 | . . 7 Power 1 | . . 1 Propulsion 2 | . . 2 Utility . | . . . Weapon 4 | . . 4 Tool/Special . | . . . Average Slot Usage (%) 94 | . 97 88 Engine 13 | . 13 13 Wheel 27 | . 27 27 Device 9 | . 12 4 Storage 14 | . 14 14 Energy Gun 21 | . 18 28 Ballistic Gun 6 | . 8 . Peak Build Rating 10 | 7 10 10 Average Rating 7 | 4 7 7 On Entrance 5 | . 7 10 Avg Prop Armor Cover (%) 27 | 27 . . Naked Turns . | . . . Heaviest Build 30 | 13 30 30 Greatest Support 20 | 20 20 20 Greatest Overweight (x) 1 | . 1 1 Average Overweight (x) . | . . 1 Largest Inventory Capacity 15 | 8 15 15 Average Capacity 12 | 6 12 15 Most Carried 15 | 6 15 14 Average Carried 10 | 3 9 13 Final Capacity 15 | 8 15 15 Final Carried 13 | 6 12 13 Class Distribution -------------------- 73% | Mutant 26% | Scavenger-Mutant Dominant Class ---------------- Mutant | -10/Materials Mutant | -10/Subcaves Resources | -11 -10 -10 ----------- Run | Yrd Mat Sub Matter Collected 482 | 294 168 20 Remotely . | . . . Salvage Created 620 | 150 470 . Parts 36 | 11 25 . Haulers Intercepted 1 | . 1 . Recyclers Shooed . | . . . Parts Field Recycled . | . . . Retrieved Matter . | . . . Parts Self-Destructed . | . . . Prevented . | . . . Parts Restored . | . . . Kills | -11 -10 -10 ------- Run | Yrd Mat Sub Combat Hostiles Destroyed 11 | . 11 . Guns 10 | . 10 . Classes Destroyed 6 | 2 4 . Worker 1 | . 1 . Tunneler 4 | 4 . . Hauler 1 | . 1 . Recycler 1 | 1 . . Swarmer 3 | . 3 . Grunt 8 | . 8 . Best Kill Streak 5 | 5 3 . Combat Bots Only 3 | . 3 . Max Kills in Single Turn 1 | 1 1 . Gunslinging . | . . . Exploded . | . . . Melee . | . . . Uniques/NPCs Destroyed . | . . . Combat | -11 -10 -10 -------- Run | Yrd Mat Sub Hostile Shots Fired 93 | . 83 10 Missed 21 | . 18 3 Hits 72 | . 65 7 Projectile 72 | . 65 7 Critical Strikes 1 | . 1 . Damage Taken 893 | . 658 235 Core 251 | . 173 78 Absorbed by Shields . | . . . Core Remaining (%) 100 | 100 . . Volleys Fired 84 | 14 64 6 Largest 2 | 2 2 2 Hottest 100 | 60 100 100 Shots Fired 166 | 28 126 12 Gun 166 | 28 126 12 Cannon . | . . . Launcher . | . . . Special . | . . . Kinetic 55 | 14 41 . Thermal 111 | 14 85 12 Explosive . | . . . Electromagnetic . | . . . Robot Hit Streak 17 | 6 17 11 Robot Miss Streak 8 | 1 8 1 Penetration Max . | . . . Secondary Targets . | . . . Shots Hit Robots 105 | 18 76 11 Core Hits 35 | 9 25 1 Critical Kills . | . . . Critical Parts Destroyed 2 | 1 1 . Critical Strikes 3 | 1 2 . Burn 1 | . 1 . Destroy 2 | 1 1 . Melee Attacks . | . . . Impact . | . . . Slashing . | . . . Piercing . | . . . Sneak Attacks . | . . . Combat Hostiles . | . . . Follow-up Attacks . | . . . Damage Inflicted 1168 | 178 853 137 Guns 1168 | 178 853 137 Cannons . | . . . Explosions . | . . . Melee . | . . . Ramming . | . . . Kinetic 335 | 69 266 . Thermal 833 | 109 587 137 Explosive . | . . . Electromagnetic . | . . . Impact . | . . . Slashing . | . . . Piercing . | . . . Highest Corruption . | . . . Average Corruption . | . . . Corruption Purged . | . . . Corruption Blocked . | . . . Overload Shots . | . . . Overflow Damage . | . . . Projectiles . | . . . Explosions . | . . . Melee . | . . . Knockbacks . | . . . Impact . | . . . Kinetic . | . . . Secondary . | . . . Self-Inflicted Damage . | . . . Shots . | . . . Rammed . | . . . Targets Rammed . | . . . Kicked . | . . . Crushed . | . . . Highest Temperature 117 | 40 117 2 Average Temperature 35 | 19 39 2 Received Heat Transfer 279 | . 216 63 Siege Activations . | . . . Martial Activations . | . . . Shielding Activations . | . . . Robots Disrupted . | . . . Combat Hostiles . | . . . Robots Corrupted . | . . . Combat Hostiles . | . . . Parts Fried . | . . . Impact Corruptions . | . . . Robots Melted 1 | . 1 . Combat Hostiles 1 | . 1 . Parts Melted 2 | . 2 . Heat Transferred 2151 | 250 1494 407 Parts Sabotaged . | . . . Parts Stolen . | . . . Parts Stripped . | . . . Power Chain Reactions . | . . . Alert | -11 -10 -10 ------- Run | Yrd Mat Sub Maximum Alert Level . | . . . Low Security (%) 100 | 100 100 . Level 1 . | . . . Level 2 . | . . . Level 3 . | . . . Level 4 . | . . . Level 5 . | . . . High Security . | . . . Max Security . | . . . Peak Influence 92 | 10 92 . Initial 3 | . 3 . Average 25 | 1 29 . Influence Increases 341 | 25 316 . Destroy 0b10 Robot/C 220 | . 220 . Destroy 0b10 Robot/NC 35 | 25 10 . Destroy Leader 72 | . 72 . Successful Hack 12 | . 12 . Destroy Structure 2 | . 2 . Influence Decreases 341 | 20 269 52 Entered New Map 28 | . 2 26 Time Decay 243 | 20 197 26 Lost Part 70 | . 70 . Squads Dispatched 5 | . 5 . Investigation 3 | . 3 . Extermination . | . . . Reinforcement 2 | . 2 . Assault . | . . . Garrison . | . . . Intercept . | . . . Searches Triggered . | . . . Construction Impeded . | . . . Haulers Reinforced . | . . . Active Scanning Responses . | . . . Cargo Convoy Interrupts . | . . . Stealth | -11 -10 -10 --------- Run | Yrd Mat Sub Distress Signals 1 | . 1 . Communications Jammed . | . . . Distress Signals . | . . . Times Spotted 22 | . 21 1 Peak Tracking Total 4 | . 4 1 Tactical Retreats . | . . . Traps | -11 -10 -10 ------- Run | Yrd Mat Sub Traps Triggered 3 | . 2 1 Indirectly . | . . . Trap Hack Attempts . | . . . Triggered . | . . . Disarmed . | . . . Reprogrammed . | . . . Reused . | . . . Traps Extracted . | . . . Installed . | . . . Triggered . | . . . Most Traps Carried 1 | . . 1 Machines | -11 -10 -10 ---------- Run | Yrd Mat Sub Machines Disabled . | . . . Max in Single Turn . | . . . Machines Repaired . | . . . Machines Dismantled . | . . . Machines Sabotaged . | . . . Overloaded Fab Kills . | . . . Hacking | -11 -10 -10 --------- Run | Yrd Mat Sub Machines Accessed 9 | . 8 1 Terminals 6 | . 6 . Fabricators . | . . . Repair Stations . | . . . Recycling Units 2 | . 2 . Scanalyzers . | . . . Garrison Access . | . . . Total Hacks 25 | . 24 1 Successful 10 | . 9 1 Failed 15 | . 15 . Catastrophic 4 | . 4 . Database Lockouts . | . . . Manual 18 | . 18 . Terminals 18 | . 18 . Fabricators . | . . . Repair Stations . | . . . Recycling Units 6 | . 6 . Scanalyzers . | . . . Garrison Access . | . . . Terminal Hacks 1 | . . 1 Proto ID Catalog 1 | . . 1 Fabricator Hacks . | . . . Repair Station Hacks . | . . . Recycling Unit Hacks 1 | . 1 . Report Inventory 1 | . 1 . Scanalyzer . | . . . Garrison Access Hacks . | . . . Unauthorized Hacks 8 | . 8 . Terminals 8 | . 8 . Botnet 2 | . 2 . Operators 1 | . 1 . Skim 5 | . 5 . Fabricators . | . . . Repair Stations . | . . . Recycling Units . | . . . Scanalyzers . | . . . Garrison Access . | . . . Data Cores Recovered . | . . . Used . | . . . Hacking Detections 7 | . 7 . Full Trace Events 3 | . 3 . Feedback Events . | . . . Feedback Blocked . | . . . Robot Schematics Acquired . | . . . Robots Built . | . . . Authchips . | . . . Time . | . . . Total Robot Build Rating . | . . . Part Schematics Acquired . | . . . Parts Built . | . . . Authchips . | . . . Time . | . . . Total Part Build Rating . | . . . Part Studies Acquired . | . . . Parts Repaired . | . . . Time . | . . . Parts Recycled . | . . . Recycled Matter . | . . . Retrieved Matter . | . . . Retrieved Components . | . . . Parts Scanalyzed . | . . . Part Schematics Acquired . | . . . Parts Damaged . | . . . Bothacking | -11 -10 -10 ------------ Run | Yrd Mat Sub Used RIF Installer . | . . . Robots Hacked . | . . . Non-combat . | . . . Combat . | . . . Robot Hacks Applied . | . . . Relay Couplers Released . | . . . Fabnet Peak Effective % . | . . . Robots Rewired . | . . . Allies Hacked . | . . . Hacks Repelled . | . . . Allies | -11 -10 -10 -------- Run | Yrd Mat Sub Total Allies . | . . . Largest Group . | . . . Highest-Rated Group . | . . . Highest-Rated Ally . | . . . Total Orders . | . . . Ally Attacks . | . . . Total Damage . | . . . Kills . | . . . Allies Corrupted . | . . . Allies Melted 1 | . . 1 Intel | -11 -10 -10 ------- Run | Yrd Mat Sub Active Infowar (turns) 583 | 7 543 33 Structural 2 | . . 2 Seismic 581 | 7 543 31 Robot Analysis Total . | . . . Derelict Logs Recovered 1 | . . 1 Drone Launches . | . . . Drone Recoveries . | . . . Exploration | -11 -10 -10 ------------- Run | Yrd Mat Sub Turns Passed 1298 | 137 835 326 Spaces Moved 1083 | 100 680 303 Core 2 | 2 . . Treads 2 | 2 . . Legs . | . . . Wheels 1079 | 96 680 303 Hover . | . . . Flight . | . . . Fastest Speed 50 | 50 80 95 Average Speed 89 | 81 89 95 Slowest Speed 160 | 160 95 95 Overloaded Moves . | . . . Propulsion Burnouts . | . . . Robots Hopped . | . . . Potential Cave-ins . | . . . Cave-ins Triggered . | . . . Exploration Rate (%) 39 | 4 98 16 Regions Visited 2 Branch Regions 1 Pre-discovered Areas 1 | . . 1 Known Exits Taken . | . . . Unknown Exits Taken 2 | 1 1 . Scrap Searched 1 | . . 1 Spaces Dug . | . . . Terrain Destroyed . | . . . Melee . | . . . Projectile . | . . . AOE . | . . . Terrain Rammed . | . . . Walls Destroyed . | . . . Machines Disabled . | . . . Actions | -11 -10 -10 --------- Run | Yrd Mat Sub Total 1240 | 127 786 327 Wait 30 | . 17 13 Move 1081 | 99 679 303 Hop . | . . . Pick Up 20 | 5 13 2 Fast Attach 8 | 8 . . Attach 8 | . 7 1 Detach 1 | 1 . . Swap 6 | . 4 2 Drop 2 | . 2 . Fire 84 | 14 64 6 Melee . | . . . Ram . | . . . Kick . | . . . Crush . | . . . Escape Stasis . | . . . Rewire . | . . . Trap . | . . . Miscellaneous . | . . . Route ------- -11/Scrapyard -10/Materials (discovered 5 exits: [*Mat x3] / [*Min] / *Sub) -10/Subcaves (discovered 1 exit: [*Mat]) History --------- Turn | Location | Event 10 | -11/Scrapyard | Discovered new exit (range 15) 138 | -11/Scrapyard | Entered Materials 285 | -10/Materials | Discovered new exit (range 12) 304 | -10/Materials | Build established: Mutant 385 | -10/Materials | Discovered new exit (range 12) 482 | -10/Materials | Discovered new exit (range 8) 600 | -10/Materials | Discovered new exit (range 16) 710 | -10/Materials | Core integrity fell below 50% 716 | -10/Materials | Lost 5 parts (1p2n1u1w) 967 | -10/Materials | Discovered new exit (range 7) 973 | -10/Materials | Entered Subcaves 974 | -10/Subcaves | Approached by a straggling Scientist 992 | -10/Subcaves | Build established: Scavenger-Mutant 1013 | -10/Subcaves | Discovered new exit (range 12) 1022 | -10/Subcaves | Shifting Twisted Machinery released Mak. Flight Unit 1024 | -10/Subcaves | Shifting Twisted Machinery released Piercing Trap 1079 | -10/Subcaves | Visited 4L-MR0's lab 1085 | -10/Subcaves | Learned location of Storage (-8) 1288 | -10/Subcaves | Core integrity fell below 20% 1299 | -10/Subcaves | Destroyed by WX-F0Y(R) with Subdweller Beam Cannon Last Messages --------------- Arachnoskeleton Cargo Legs Tripod Weapons Platform Hoverbase Flightbrick Gun Armor Tower Shield Power Bank Rainbow Chip Procsplitter VL-GR5's Exoskeleton "Deathgrip" Powered Cannon 01085_ Acquired derelict log, extracted data. World map updated: -8/Storage. 01091_ 4L-MR0 mumbles to no one in particular: "Damn Subs sneaking around stealing my stuff." BS-C7Q(c): "I think it's somewhere west of here" 01289_ Ion Engine destroyed. 01289_ Wheel destroyed. 01293_ Med. Laser destroyed. Map ----- +----------------------------------------------------+ | ?????????????????????##" ##""#?????????????? | | ??????????????????????##"""## ####??????#######? | | ?????????????????????#######" ###?????########## | | ??????????????????#### ### " ####?##"" " " # | | ?????????????????## # ###"""< | | ?????????????????# ########### "###" " ## | | ?????????????????# ##?????## #?## " ## | | ?????????????????# #?????# ####??# #""### | | ?????????????????# #????## "######## # "### | | ?????????????????# ####### ## ### "### | | ?????????????????# ### """ """## | | ?????????????????## ### """"## | | ??????????????????## ### ## ## # #"""## | | ??????????????????## ## ###########"" ## | | ??????????????????# ### # ##" #? | | ??????????????????## ##??# #? | | ??????????????????## ###??## ##########? | | ??????????????#??## ###????# #?????????? | | ??????????### # # ###?####### ##?????????? | | ?????? ##### ## ##?????????? | | ?????????# ### ### #?????????? | | ??????????????#???## # ### ###?????????? | | ???????????????????# ## #####?###???????????? | | ???????????????????# ### #???????????????????? | | ??????????????????# ##;R #???????????????????? | | ??????????????????## ##@ ##???????????????????? | | ???????????????????## #### ##???????????????????? | | ????????????????????###??## #???????????????????? | | ??????????????????????????# ##???????????????????? | | ??????????????????????????###????????????????????? | | ?????????????????????????????????????????????????? | | ?????????????????????????????????????????????????? | | ?????????????????????????????????????????????????? | | ?????????????????????????????????????????????????? | | ?????????????????????????????????????????????????? | | ?????????????????????????????????????????????????? | | ?????????????????????????????????????????????????? | | ?????????????????????????????????????????????????? | | ?????????????????????????????????????????????????? | | ?????????????????????????????????????????????????? | | ?????????????????????????????????????????????????? | | ?????????????????????????????????????????????????? | | ?????????????????????????????????????????????????? | | ?????????????????????????????????????????????????? | | ?????????????????????????????????????????????????? | | ?????????????????????????????????????????????????? | | ?????????????????????????????????????????????????? | | ?????????????????????????????????????????????????? | | ?????????????????????????????????????????????????? | | ?????????????????????????????????????????????????? | +----------------------------------------------------+ Best States ------------- Heat Dissipation 39 Energy Generation 10 Energy Capacity 250 Matter Stores 300 Matter Capacity 300 Sight Range 16 Terrain Scan Density 10 Armor Coverage 150 Evasion (%) 44 Item Schematics ----------------- None Robot Schematics ------------------ None Fabricated ------------ Nothing Repaired ---------- Nothing Studied --------- None Alien Tech Used ----------------- None Achievements -------------- None Challenges ------------ None Game ------ Seed HugeIntegratedWall Manual? 0 Play Time 00:14:18 Cumulative 163.2 hours Start 2026.02.11 @ 19:04:01 End 2026.02.17 @ 16:52:08 Sessions 2 Manual Loads 0 Difficulty Rogue Special Mode None Game No. 83 Rogue 83 Adventurer 0 Explorer 0 Win Type - Total 7 Types 6/0/1/0/0/0/0/0/0/0 Lore% 67 Gallery% 65 Achievement% 62 Wizard Run 0 Options --------- Layout 0 ASCII 0 Keyboard 1 Movement Arrows Keybinds 0 Fullscreen 1 Font 18/SmallcapsGlow Map View 76x50 Zoom Use 0% Tactical HUD 1 Map Filters NONE Filters NONE Steam 1 RUN: 43b9d57f-cd15-4cd0-8308-bae43278ae0c